[Event "32nd NATO Championship 2022"]
[Site "Tartu"]
[Date "2022.06.30"]
[Round "6.11"]
[White "Peraino, Andrew"]
[Black "Pedersen, Finn"]
[Result "1-0"]
[ECO "B12"]
[WhiteElo "1940"]
[BlackElo "2300"]
[Annotator "TA"]
[PlyCount "99"]
[EventDate "2022.06.27"]
[EventType "swiss"]
[EventCountry "EST"]
[SourceTitle "playchess.com"]
[Source "ChessBase"]
[SourceQuality "1"]
[TimeControl "5400+30"]

{[%evp 9,99,22,29,3,10,0,0,-14,-13,-31,-32,-125,-118,-209,-207,-255,-267,-271,-270,-271,-285,-253,-149,-144,-126,-187,-168,-304,-262,-274,-187,-247,-241,-233,-244,-252,-218,-214,-212,-268,-218,-244,-242,-339,-339,-316,-311,-385,-384,-378,-302,-291,-275,-262,0,-108,0,0,0,0,0,0,8,-417,242,104,87,0,168,168,1039,1008,917,699,29974,6195,6187,1183,1177,1164,1102,1093,1062,1046,29977,29979,29980,29980,29983,29984,29982,29982]} 1. e4 {[%emt 0:00:16][%cal Be2e4,Be4e5][%mdl 32]} c6 {[%emt 0:00:08]} 2. d4 {[%emt 0:00:51]} d5 {[%emt 0:00:05]} 3. e5 {[%emt 0:00:06]} Bf5 {[%emt 0:00:07]} 4. Nd2 {[%emt 0:01:20]} e6 {[%emt 0:00:45]} 5. Nb3 {[%emt 0:00:32]} Nd7 {[%emt 0:04:54]} 6. f4 {[%emt 0:03:42] [#] B12: Caro-Kann: Advance Variation.} Ne7 $146 {[%emt 0:03:42][%cal Bg8e7,Be7f5,Bf5d4][%mdl 32]} ({Predecessor:} 6... a6 7. Nf3 Rc8 8. Be2 c5 9. c3 h5 10. O-O Nh6 11. h3 c4 12. Nbd2 Bg6 13. Qe1 Nf5 {1-0 (41) Merry,A (2462)-Kathmale,S (2323) Pardubice 2018}) 7. Bd2 {[%emt 0:02:58]} h5 {[%emt 0:02:33]} 8. a4 {[%emt 0:03:02] The position is equal.} Bg4 {[%emt 0:02:11]} 9. Be2 {[%emt 0:02:46]} Nf5 {[%emt 0:01:30]} 10. g3 {[%emt 0:01:12] Inhibits Qh4.} (10. Nf3 $15) 10... c5 $1 $17 {[%emt 0:05:37][%cal Bc6c5,Bc5c4][%mdl 32]} 11. Bxg4 {[%emt 0:01:03]} (11. dxc5 $17 Nxc5 12. Bc3) 11... hxg4 $19 {[%emt 0:00:13]} 12. Qxg4 {[%emt 0:03:35]} c4 {[%emt 0:00:35][%mdl 64] Deflection} (12... Nxd4 13. Nxd4 cxd4 14. Nf3 $11) (12... cxd4 13. Ne2 $17) 13. Nc1 {[%emt 0:03:28]} Nxd4 {[%emt 0:00:38]} 14. Qd1 {[%emt 0:00:24]} Nf5 {[%emt 0:01:05]} 15. Nce2 {[%emt 0:02:13]} Bc5 {[%emt 0:02:56]} ({Better is} 15... Nc5 $19 {Strongly threatening ...Ne4.} 16. Nf3 Ne4) 16. Nf3 $17 {[%emt 0:02:10]} Qb6 {[%emt 0:05:17] Inhibits b4.} 17. c3 {[%emt 0:07:52]} (17. a5 $17 Qc6 18. c3) 17... a5 $19 {[%emt 0:07:51]} (17... Qxb2 18. Rb1 Qa2 19. Ra1 $17) 18. Bc1 {[%emt 0:13:06]} (18. Rb1 $142) 18... Bf2+ {[%emt 0:04:26]} 19. Kf1 {[%emt 0:00:21]} Bxg3 {[%emt 0:01:33][%csl Gg3][%cal Rb6f2]} 20. Nfd4 {[%emt 0:01:09]} (20. Ned4 $142) 20... Bh4 {[%emt 0:01:04][%cal Bg3h4,Bh4e7,Be7c5][%mdl 32]} 21. Rg1 {[%emt 0:02:08]} g6 {[%emt 0:00:48]} 22. Rg2 {[%emt 0:01:15]} Nxd4 {[%emt 0:03:45]} 23. Nxd4 {[%emt 0:00:31]} Be7 {[%emt 0:01:48]} 24. Rb1 {[%emt 0:04:06]} Bc5 {[%emt 0:00:53]} 25. Nb5 {[%emt 0:00:09]} Qc6 {[%emt 0:02:21]} 26. Qf3 {[%emt 0:01:38]} (26. Bd2 {keeps fighting.}) 26... Nb6 {[%emt 0:03:26]} 27. Qd1 {[%emt 0:03:32]} Rh3 {[%emt 0:02:02]} 28. b3 {[%emt 0:02:59]} cxb3 {[%emt 0:01:48]} 29. Qg4 {[%emt 0:03:34]} Rh8 {[%emt 0:03:17]} 30. Rxb3 {[%emt 0:01:24]} Nxa4 {[%emt 0:01:24]} 31. f5 {[%emt 0:00:44] [#]} Nb6 {[%emt 0:07:01]} (31... gxf5 32. Qxa4 O-O-O 33. Qxa5 $14) (31... Bb4 $1 $19 {[%mdl 512]} 32. Nd6+ Bxd6 33. exd6 O-O-O 34. fxg6 fxg6) 32. fxg6 {[%emt 0:00:18]} (32. fxe6 $11 {keeps the balance.} Rh7 33. Nd6+ Bxd6 34. exd6 Qc4+ 35. Qxc4 Nxc4 36. d7+ Ke7 37. d8=R Rxd8 38. Bg5+ f6 39. Rxb7+ Kxe6 40. Rxh7 fxg5 41. Rxg5) 32... fxg6 {[%emt 0:01:04]} ({Black should play} 32... Nc4 $17 33. Re2 O-O-O) 33. Qxg6+ $11 {[%emt 0:00:12]} Kd7 {[%emt 0:00:09] ...a4 is the strong threat.} 34. Qg7+ {[%emt 0:00:47]} Be7 {[%emt 0:00:21]} 35. Bg5 $1 {[%emt 0:16:21]} Qc4+ {[%emt 0:02:36]} 36. Ke1 $2 {[%emt 0:02:42][%mdl 8192]} (36. Kg1 $1 $11 Rae8 37. Nd4) 36... Rhe8 $4 {[%emt 0:11:18][%mdl 8192]} (36... Qe4+ $1 $19 {and all is fine.} 37. Re2 Qh1+ 38. Kd2 Nc4+ 39. Kc2 Rae8 40. Bxe7 Reg8) 37. Nd4 $18 {[%emt 0:01:22] Really sharp!} Ra6 {[%emt 0:03:21] And now ...a4 would win.} 38. Rgb2 {[%emt 0:00:51] White is more active.} (38. Qf7 $6 a4 39. Qxe6+ Kc7 40. Bxe7 axb3 41. Bd6+ Kd8 42. Be7+ Kc7 43. Bd6+ Kd8 44. Be7+ Kc7 $11) (38. Bxe7 $1 $16 {White wants to mate with Bd6+.} Rxe7 39. Qf6) 38... Qc5 {[%emt 0:06:22]} (38... a4 $1 $11 39. Rxb6 Rxb6 40. Rxb6 Qxc3+ 41. Kf1 Qxd4 42. Rxb7+ Kc6 43. Rxe7 Qd1+ 44. Kg2 Qg4+ 45. Kh1 Qf3+ 46. Kg1 Qg4+ 47. Kh1 Qf3+ 48. Kg1 Qg4+ 49. Kh1) 39. Qf7 $36 {[%emt 0:01:05][%mdl 2048] White is on the roll.} Na8 $2 {[%emt 0:00:15]} (39... a4 40. Qxe6+ Kd8 41. Rxb6 (41. Bxe7+ Rxe7 42. Qg8+ Kc7 $11) 41... Bxg5 42. Nc6+ Qxc6 43. Qxc6 bxc6 44. Rxa6 Rxe5+ 45. Re2 Bf4 46. Rxe5 (46. Rxc6 Rh5 $18) (46. Rxa4 Bxh2 47. Ra7 Rxe2+ 48. Kxe2 Bd6 $16) 46... Bxe5 47. Rxc6 (47. Rxa4 Bxh2 48. Ra7 Bd6 $16) 47... Kd7) 40. Rxb7+ {[%emt 0:00:35]} Nc7 {[%emt 0:00:04]} 41. Kd2 {[%emt 0:00:59] Threatens to win with R2b5.} a4 {[%emt 0:00:26]} 42. R2b5 {[%emt 0:01:58]} Qc4 {[%emt 0:00:27] [#]} 43. R5b6 {[%emt 0:01:02]} (43. Rxc7+ $142 $1 {[%mdl 512]} Qxc7 {[#]} 44. Nxe6 $1 {[%mdl 512]} Qxe5 45. Rb7+ Kc8 46. Qxe8+ Kxb7 47. Qxe7+ Kb8 48. Bf4 Qxf4+ 49. Nxf4) 43... Rxb6 {[%emt 0:01:05]} 44. Rxb6 {[%emt 0:00:09] aiming for Bxe7.} Qa2+ {[%emt 0:00:27]} 45. Nc2 {[%emt 0:01:08] Black must now prevent Bxe7.} d4 {[%emt 0:01:37]} 46. cxd4 {[%emt 0:01:17] Threatening mate with Bxe7.} Kc8 {[%emt 0:01:57]} 47. Bxe7 {[%emt 0:00:31] White mates.} Rh8 {[%emt 0:00:42]} 48. h4 {[%emt 0:00:51]} Qd5 {[%emt 0:00:05]} 49. Bd6 {[%emt 0:03:25][%csl Gd6][%cal Rf7c7]} Qa5+ {[%emt 0:01:31]} 50. Rb4 {[%emt 0:00:01] Quite a comeback for White.  Weighted Error Value: White=0.59/Black=0.75} 1-0

[Event "32nd NATO Championship 2022"]
[Site "Tartu"]
[Date "2022.06.30"]
[Round "6.15"]
[White "Wagenaar, Harm Theo"]
[Black "Schott, Guido"]
[Result "1/2-1/2"]
[ECO "A44"]
[WhiteElo "1893"]
[BlackElo "2028"]
[Annotator "RC"]
[PlyCount "38"]
[EventDate "2022.06.27"]
[EventType "swiss"]
[EventCountry "EST"]
[SourceTitle "playchess.com"]
[Source "ChessBase"]
[SourceQuality "1"]
[TimeControl "5400+30"]

1. d4 {[%emt 0:00:21]} c5 {[%emt 0:00:14]} 2. d5 {[%emt 0:00:34]} e5 {[%emt 0:00:07]} 3. e4 {[%emt 0:00:52]} d6 {[%emt 0:00:14]} 4. Nc3 {[%emt 0:01:13]} a6 {[%emt 0:02:52]} 5. a4 {[%emt 0:00:28]} b6 {[%emt 0:00:19]} 6. Be2 {[%emt 0:02:28]} Be7 {[%emt 0:00:42]} 7. Nf3 {[%emt 0:01:49]} Nf6 {[%emt 0:01:53]} 8. h3 {[%emt 0:01:27]} Nbd7 {[%emt 0:01:23]} 9. Be3 {[%emt 0:03:26]} Qc7 {[%emt 0:00:45]} 10. Nd2 {[%emt 0:02:19]} O-O {[%emt 0:00:47]} 11. O-O {[%emt 0:00:31]} Bb7 {[%emt 0:04:08]} 12. Nc4 {[%emt 0:09:00]} Qb8 {[%emt 0:07:25]} 13. Na3 {[%emt 0:12:10]} Rc8 {[%emt 0:03:38]} 14. Bd3 {[%emt 0:08:36]} Rc7 {[%emt 0:07:40]} 15. Ne2 {[%emt 0:07:49]} b5 {[%emt 0:10:42]} 16. axb5 {[%emt 0:03:14]} axb5 {[%emt 0:01:26]} 17. c4 {[%emt 0:06:14]} bxc4 {[%emt 0:01:14]} 18. Nxc4 {[%emt 0:00:13]} Rxa1 {[%emt 0:02:01]} 19. Qxa1 {[%emt 0:00:11]} Ba8 {[%emt 0:00:55]} 1/2-1/2

[Event "32nd NATO Championship 2022"]
[Site "Tartu"]
[Date "2022.06.30"]
[Round "6.17"]
[White "Duren, Andrew"]
[Black "Tikerpuu, Mati"]
[Result "1-0"]
[ECO "D02"]
[WhiteElo "1997"]
[BlackElo "1819"]
[Annotator "NA RC"]
[PlyCount "163"]
[EventDate "2022.06.27"]
[EventType "swiss"]
[EventCountry "EST"]
[SourceTitle "playchess.com"]
[Source "ChessBase"]
[SourceQuality "1"]
[TimeControl "5400+30"]

1. d4 {[%emt 0:00:03]} b6 {[%emt 0:00:13]} 2. Bf4 {[%emt 0:00:09]} e6 {[%emt 0:00:22]} 3. e3 {[%emt 0:00:10]} Bb7 {[%emt 0:00:33]} 4. Nf3 {[%emt 0:00:16]} Nf6 {[%emt 0:00:37]} 5. Nbd2 {[%emt 0:01:29]} Be7 {[%emt 0:01:25]} 6. h3 {[%emt 0:00:12]} O-O {[%emt 0:00:26]} 7. Bd3 {[%emt 0:04:51]} c5 {[%emt 0:02:04]} 8. O-O {[%emt 0:04:26]} d5 {[%emt 0:02:55]} 9. c3 {[%emt 0:00:52]} Nc6 {[%emt 0:07:03]} 10. Ne5 {[%emt 0:06:40]} Nxe5 {[%emt 0:03:22]} 11. dxe5 {[%emt 0:01:42]} Ne4 {[%emt 0:09:45]} 12. Bxe4 {[%emt 0:03:01]} dxe4 {[%emt 0:01:16]} 13. Qc2 {[%emt 0:00:11]} Qd3 {[%emt 0:03:08]} 14. Qxd3 {[%emt 0:00:08]} exd3 {[%emt 0:00:05]} 15. c4 {[%emt 0:01:15]} Rfd8 {[%emt 0:03:27]} 16. Rfd1 {[%emt 0:06:02]} a6 {[%emt 0:03:57]} 17. a4 {[%emt 0:00:48]} Bc6 {[%emt 0:00:56]} 18. f3 {[%emt 0:02:08]} b5 {[%emt 0:06:14]} ({Black should play} 18... g5 $15 19. Bg3 h5) 19. axb5 {[%emt 0:00:15]} axb5 {[%emt 0:00:13]} 20. b3 {[%emt 0:00:18]} b4 $11 {[%emt 0:10:46]} 21. e4 {[%emt 0:11:12]} h6 {[%emt 0:18:37]} 22. Rxa8 {[%emt 0:06:38]} Rxa8 {[%emt 0:01:17]} 23. Nf1 {[%emt 0:00:20]} Ra3 {[%emt 0:13:30]} 24. Rxd3 {[%emt 0:00:21]} Ba4 {[%emt 0:00:23]} 25. Nd2 {[%emt 0:00:13]} Kf8 {[%emt 0:00:28]} 26. Be3 {[%emt 0:01:34]} Ke8 {[%emt 0:00:41]} 27. Kf1 {[%emt 0:02:06]} Bd7 {[%emt 0:01:09]} 28. Ke2 {[%emt 0:02:35]} Kd8 {[%emt 0:01:18]} 29. h4 {[%emt 0:05:43]} Kc7 {[%emt 0:01:20]} 30. h5 {[%emt 0:01:37]} Bc6 {[%emt 0:01:29]} 31. g4 {[%emt 0:01:31]} Kb6 {[%emt 0:00:40]} 32. Nb1 {[%emt 0:08:48]} Ra1 {[%emt 0:00:59]} 33. Rd1 {[%emt 0:02:21]} Ra2+ {[%emt 0:00:13]} 34. Nd2 {[%emt 0:00:19]} Ra3 {[%emt 0:00:47]} 35. f4 {[%emt 0:04:17]} Ra2 {[%emt 0:00:17]} 36. Kd3 {[%emt 0:01:43]} Bh4 {[%emt 0:01:10]} 37. Rh1 {[%emt 0:01:02]} Bd8 {[%emt 0:00:29]} 38. g5 {[%emt 0:01:26]} Ra7 {[%emt 0:03:01]} 39. Rg1 {[%emt 0:01:59]} Rd7+ {[%emt 0:01:05]} 40. Kc2 {[%emt 0:01:02]} hxg5 {[%emt 0:01:05]} 41. fxg5 {[%emt 0:00:18]} Bc7 {[%emt 0:00:16]} 42. Bf4 {[%emt 0:01:52]} g6 {[%emt 0:00:37]} 43. h6 {[%emt 0:00:21]} Rd8 {[%emt 0:00:07]} 44. Rf1 {[%emt 0:02:23]} Rh8 {[%emt 0:00:54]} 45. Kd3 {[%emt 0:00:53]} Rd8+ {[%emt 0:00:06]} 46. Ke3 {[%emt 0:00:14]} Rh8 {[%emt 0:00:29]} 47. Bg3 {[%emt 0:01:44]} Be8 {[%emt 0:00:47]} 48. Nf3 {[%emt 0:15:02]} Bc6 {[%emt 0:00:22]} 49. Nh2 {[%emt 0:00:00]} Rh7 {[%emt 0:00:16]} 50. Ng4 {[%emt 0:00:00]} Bd8 {[%emt 0:00:17]} 51. Nf6 {[%emt 0:00:00]} Rh8 {[%emt 0:00:22]} 52. Kf4 {[%emt 0:00:00]} Bc7 {[%emt 0:00:59]} 53. Bf2 {[%emt 0:00:00]} Bd8 {[%emt 0:01:21]} 54. Rd1 {[%emt 0:00:00]} Bxf6 {[%emt 0:00:51]} 55. exf6 {[%emt 0:00:00]} e5+ {[%emt 0:00:09]} 56. Kf3 {[%emt 0:00:00]} Rf8 {[%emt 0:00:53]} 57. Bg3 {[%emt 0:00:00]} Re8 {[%emt 0:00:06]} 58. h7 {[%emt 0:00:00]} Rh8 {[%emt 0:00:29]} 59. Rh1 {[%emt 0:00:00]} Bd7 {[%emt 0:00:26]} 60. Bxe5 {[%emt 0:00:00]} Be6 {[%emt 0:00:08]} 61. Bd6 {[%emt 0:00:00]} Kc6 {[%emt 0:00:15]} 62. Bf8 {[%emt 0:00:00]} Rxf8 {[%emt 0:00:47]} 63. h8=Q {[%emt 0:00:00]} Rxh8 {[%emt 0:00:04]} 64. Rxh8 {[%emt 0:00:00]} Kd7 {[%emt 0:00:49]} 65. Ra8 {[%emt 0:00:00]} Kc7 {[%emt 0:00:39]} 66. Ra7+ {[%emt 0:00:00]} Kd6 {[%emt 0:00:38]} 67. Kf4 {[%emt 0:00:00]} Kc6 {[%emt 0:00:23]} 68. Re7 {[%emt 0:00:00]} Bxc4 {[%emt 0:00:34]} 69. bxc4 {[%emt 0:00:00]} b3 {[%emt 0:00:03]} 70. Re8 {[%emt 0:00:00]} Kb7 {[%emt 0:00:08]} 71. Rh8 {[%emt 0:00:00]} b2 {[%emt 0:02:02]} 72. Rh1 {[%emt 0:00:00]} Kc6 {[%emt 0:00:24]} 73. e5 {[%emt 0:00:00]} Kd7 {[%emt 0:00:16]} 74. Rd1+ {[%emt 0:00:00]} Kc7 {[%emt 0:00:28]} 75. e6 {[%emt 0:00:00]} b1=Q {[%emt 0:00:56]} 76. Rxb1 {[%emt 0:00:00]} Kd8 {[%emt 0:00:50]} 77. e7+ {[%emt 0:00:00]} Kd7 {[%emt 0:00:09]} 78. Rd1+ {[%emt 0:00:00]} Kc7 {[%emt 0:00:27]} 79. e8=Q {[%emt 0:00:00]} Kb7 {[%emt 0:00:18]} 80. Qb5+ {[%emt 0:00:05]} Kc7 {[%emt 0:00:22]} 81. Rd7+ {[%emt 0:00:09]} Kc8 {[%emt 0:00:14]} 82. Qb7# {[%emt 0:16:46]} 1-0

[Event "32nd NATO Championship 2022"]
[Site "Tartu"]
[Date "2022.06.30"]
[Round "6.18"]
[White "Ivbulis, Martins"]
[Black "Stankowski, Aleksander"]
[Result "1/2-1/2"]
[ECO "B08"]
[WhiteElo "1815"]
[BlackElo "1971"]
[Annotator "NA RC"]
[PlyCount "84"]
[EventDate "2022.06.27"]
[EventType "swiss"]
[EventCountry "EST"]
[SourceTitle "playchess.com"]
[Source "ChessBase"]
[SourceQuality "1"]
[TimeControl "5400+30"]

1. d4 {[%emt 0:00:06]} Nf6 {[%emt 0:00:37]} 2. Nc3 {[%emt 0:00:16]} g6 {[%emt 0:00:07]} 3. Nf3 {[%emt 0:02:07]} Bg7 {[%emt 0:00:17]} 4. e4 {[%emt 0:00:10]} d6 {[%emt 0:00:07]} 5. Be2 {[%emt 0:01:20]} O-O {[%emt 0:00:10]} 6. O-O {[%emt 0:00:09]} Nc6 {[%emt 0:01:15]} 7. Be3 {[%emt 0:03:17]} e5 {[%emt 0:00:33]} 8. dxe5 {[%emt 0:00:18]} dxe5 {[%emt 0:01:01] The main line 8...dxe5 scores better than 8...Nxe5.} 9. Qxd8 {[%emt 0:00:35]} Rxd8 {[%emt 0:00:27]} 10. Bg5 {[%emt 0:02:25]} Re8 {[%emt 0:05:09]} 11. Rad1 {[%emt 0:19:33]} Bg4 {[%emt 0:06:43] [#]} 12. h3 $146 {[%emt 0:05:34]} ({Predecessor:} 12. Bxf6 Bxf6 13. Nd5 Bd8 14. c3 Kg7 15. h3 Bxf3 16. Bxf3 Ne7 17. Nxe7 Bxe7 18. Rd3 {½-½ (35) Verdiana,N (2104)-Iman S,O (2313) Cilacap 2017}) 12... Bxf3 {[%emt 0:00:56]} 13. Bxf3 {[%emt 0:00:07]} Nd4 {[%emt 0:00:23]} 14. Bxf6 {[%emt 0:00:37]} Bxf6 {[%emt 0:01:52]} 15. Nd5 {[%emt 0:00:12]} Bd8 {[%emt 0:01:09]} 16. c3 {[%emt 0:01:01]} Ne6 {[%emt 0:05:15]} 17. Be2 {[%emt 0:05:50]} c6 {[%emt 0:02:24]} 18. Ne3 {[%emt 0:00:48]} Nc5 {[%emt 0:09:08]} 19. f3 $15 {[%emt 0:07:30]} Na4 {[%emt 0:09:55]} 20. Kh1 {[%emt 0:13:33]} Bg5 {[%emt 0:20:29]} 21. Nc4 {[%emt 0:02:16]} b5 {[%emt 0:01:16]} 22. Na5 {[%emt 0:07:07]} Nxb2 {[%emt 0:07:38]} 23. Rd6 {[%emt 0:02:30]} Red8 {[%emt 0:01:44]} 24. Rxd8+ {[%emt 0:00:39]} Rxd8 {[%emt 0:04:57]} 25. Nxc6 {[%emt 0:03:17]} Rd2 {[%emt 0:01:07]} 26. Bxb5 {[%emt 0:00:11]} Nd1 {[%emt 0:00:24]} 27. Re1 {[%emt 0:07:27]} Nxc3 {[%emt 0:06:01]} 28. Bc4 {[%emt 0:00:16]} Bf4 {[%emt 0:01:45]} 29. Nxa7 {[%emt 0:02:07]} Nxa2 {[%emt 0:04:11]} 30. Bxa2 {[%emt 0:00:11]} Rxa2 {[%emt 0:00:06]} 31. Nc6 {[%emt 0:00:06]} Kg7 {[%emt 0:01:18]} 32. Nb4 {[%emt 0:00:46]} Rd2 {[%emt 0:01:15]} 33. Nd5 {[%emt 0:00:17]} Bg3 {[%emt 0:00:45]} 34. Rc1 {[%emt 0:02:18]} f5 {[%emt 0:01:11]} 35. Ne3 {[%emt 0:00:18]} Bf4 {[%emt 0:04:09]} 36. Nf1 {[%emt 0:01:18]} Rd7 {[%emt 0:01:24]} 37. Re1 {[%emt 0:00:15]} Kf6 {[%emt 0:00:20]} 38. g3 {[%emt 0:01:05]} Bh6 {[%emt 0:00:07]} 39. Kg2 {[%emt 0:00:23]} Rd4 {[%emt 0:00:31]} 40. Re2 {[%emt 0:00:19]} Rd3 {[%emt 0:00:50]} 41. Kf2 {[%emt 0:00:50]} Bf8 {[%emt 0:00:59]} 42. Kg2 {[%emt 0:01:08]} Bh6 {[%emt 0:00:35]} 1/2-1/2

[Event "32nd NATO Championship 2022"]
[Site "Tartu"]
[Date "2022.06.30"]
[Round "6.21"]
[White "Keough, Robert"]
[Black "Voroblievas, Arturas"]
[Result "1-0"]
[ECO "C54"]
[WhiteElo "2074"]
[BlackElo "1740"]
[Annotator "NA RC"]
[PlyCount "75"]
[EventDate "2022.06.27"]
[EventType "swiss"]
[EventCountry "EST"]
[SourceTitle "playchess.com"]
[Source "ChessBase"]
[SourceQuality "1"]
[TimeControl "5400+30"]

1. e4 {[%emt 0:00:40]} e5 {[%emt 0:00:08]} 2. Nf3 {[%emt 0:00:10]} Nc6 {[%emt 0:00:05]} 3. Bc4 {[%emt 0:00:04]} Nf6 {[%emt 0:00:09]} 4. d3 {[%emt 0:00:04]} Bc5 {[%emt 0:00:16]} 5. c3 {[%emt 0:00:08]} d6 {[%emt 0:00:21]} 6. O-O {[%emt 0:00:13]} a6 {[%emt 0:00:15]} 7. a4 {[%emt 0:03:45]} h6 {[%emt 0:02:07]} 8. Re1 {[%emt 0:01:03] 8.Re1 is better than 8.Nbd2.} O-O {[%emt 0:00:35]} 9. Nbd2 {[%emt 0:02:02]} Ne7 {[%emt 0:00:32]} 10. Nf1 {[%emt 0:00:37]} Ng6 {[%emt 0:00:19]} 11. b4 {[%emt 0:02:03]} Ba7 {[%emt 0:00:41] [#]} 12. d4 $146 {[%emt 0:00:46]} ({Predecessor:} 12. Be3 Re8 13. Bxa7 Rxa7 14. Qb3 Be6 15. Bxe6 Rxe6 16. Ne3 Ra8 17. a5 Qd7 18. c4 {1-0 (71) Vysochin,S (2505)-Shevchenko,K (2655) Kharkov 2021}) 12... exd4 {[%emt 0:01:22]} 13. cxd4 {[%emt 0:00:34]} d5 {[%emt 0:02:59]} 14. exd5 {[%emt 0:02:23]} Nxd5 {[%emt 0:00:23]} 15. Qb3 {[%emt 0:01:58]} Be6 {[%emt 0:04:06]} 16. Ne3 {[%emt 0:01:26]} c6 {[%emt 0:01:00]} 17. b5 {[%emt 0:00:55]} Bb8 {[%emt 0:07:50]} 18. Ba3 {[%emt 0:06:12]} Re8 {[%emt 0:04:21]} 19. Nxd5 {[%emt 0:01:58]} cxd5 {[%emt 0:00:37]} 20. Bxd5 {[%emt 0:02:15]} Nf4 {[%emt 0:10:11]} (20... Qxd5 $11 21. Qxd5 {[#]} Bxh2+ $1 22. Kxh2 Bxd5) 21. Bxe6 {[%emt 0:00:54]} Rxe6 {[%emt 0:03:22]} 22. Rxe6 {[%emt 0:00:25]} Nxe6 {[%emt 0:00:08]} 23. d5 {[%emt 0:00:11]} Nf4 $18 {[%emt 0:01:41]} (23... Nf8 $16 {keeps fighting.} 24. bxa6 Rxa6) 24. d6 {[%emt 0:02:27]} axb5 {[%emt 0:02:16]} 25. Qxb5 {[%emt 0:04:33]} Ra5 {[%emt 0:09:21]} 26. Qb4 {[%emt 0:02:28]} Rf5 {[%emt 0:22:58]} 27. Qe4 {[%emt 0:04:03]} Qf6 {[%emt 0:04:17]} 28. Rd1 {[%emt 0:03:06]} Ne6 {[%emt 0:08:55]} 29. Qxb7 {[%emt 0:00:59]} Bxd6 {[%emt 0:00:48]} 30. Bxd6 {[%emt 0:00:34]} g5 {[%emt 0:02:09]} 31. Qb8+ {[%emt 0:00:54]} Kh7 {[%emt 0:00:12]} 32. Be5 {[%emt 0:00:12]} Qe7 {[%emt 0:00:41]} 33. Qb1 {[%emt 0:03:04]} Kg6 {[%emt 0:01:00]} 34. g4 {[%emt 0:00:13]} Ng7 {[%emt 0:00:25]} 35. Bxg7 {[%emt 0:00:06]} Kxg7 {[%emt 0:00:13]} 36. Qxf5 {[%emt 0:00:13]} Qe2 {[%emt 0:00:21]} 37. Qe5+ {[%emt 0:00:12]} Qxe5 {[%emt 0:00:08]} 38. Nxe5 {[%emt 0:00:09]} 1-0

[Event "32nd NATO Championship 2022"]
[Site "Tartu"]
[Date "2022.06.30"]
[Round "6.22"]
[White "Giedraitis, Mingaudas"]
[Black "Sauer, Marko"]
[Result "1/2-1/2"]
[ECO "A47"]
[WhiteElo "1846"]
[BlackElo "2065"]
[Annotator "NA RC"]
[PlyCount "73"]
[EventDate "2022.06.27"]
[EventType "swiss"]
[EventCountry "EST"]
[SourceTitle "playchess.com"]
[Source "ChessBase"]
[SourceQuality "1"]
[TimeControl "5400+30"]

1. d4 {[%emt 0:00:03]} Nf6 {[%emt 0:00:11]} 2. Bf4 {[%emt 0:00:06]} e6 {[%emt 0:00:34]} 3. e3 {[%emt 0:00:05]} b6 {[%emt 0:01:01]} 4. Nf3 {[%emt 0:00:31]} Bb7 {[%emt 0:00:41]} 5. Nbd2 {[%emt 0:00:43]} Be7 {[%emt 0:01:42]} 6. h3 {[%emt 0:00:43]} a6 {[%emt 0:03:53]} 7. c3 {[%emt 0:03:25]} d5 {[%emt 0:02:55]} 8. Bd3 {[%emt 0:00:19]} Nbd7 {[%emt 0:01:29]} 9. O-O {[%emt 0:01:31]} Ne4 {[%emt 0:05:46]} 10. c4 {[%emt 0:07:13]} c5 {[%emt 0:05:19]} 11. Bh2 {[%emt 0:21:53]} (11. cxd5 $142 exd5 12. Be2) 11... O-O {[%emt 0:15:19]} 12. cxd5 {[%emt 0:09:56]} exd5 {[%emt 0:01:29]} 13. Ne5 {[%emt 0:01:26]} cxd4 $11 {[%emt 0:08:42]} (13... Nxe5 $142 14. Bxe5 Nxd2 15. Qxd2 c4) 14. exd4 {[%emt 0:01:06]} Nxe5 {[%emt 0:03:54]} 15. Bxe5 {[%emt 0:01:09]} Nxd2 {[%emt 0:09:20]} 16. Qxd2 {[%emt 0:00:05]} Rc8 {[%emt 0:01:47]} 17. Qf4 {[%emt 0:06:40]} Rc6 {[%emt 0:10:19]} 18. Rac1 {[%emt 0:05:59]} Bg5 {[%emt 0:07:44]} 19. Qg3 {[%emt 0:01:51]} Bf6 {[%emt 0:04:04]} 20. Rxc6 {[%emt 0:06:25]} Bxe5 {[%emt 0:02:29]} 21. Qxe5 {[%emt 0:01:44]} Bxc6 {[%emt 0:00:06]} 22. Bxa6 {[%emt 0:03:25]} Re8 {[%emt 0:01:26]} 23. Qg3 {[%emt 0:00:32]} b5 {[%emt 0:00:27]} 24. a4 {[%emt 0:05:44]} bxa4 {[%emt 0:00:35]} 25. Rc1 {[%emt 0:01:13]} Qb6 {[%emt 0:01:57]} 26. Qc3 {[%emt 0:01:21]} Re6 {[%emt 0:02:32]} 27. Bc8 {[%emt 0:03:38]} Rd6 {[%emt 0:01:23]} 28. Bg4 {[%emt 0:01:40]} g6 {[%emt 0:00:31]} 29. Qa3 {[%emt 0:01:23]} Bb5 {[%emt 0:00:49]} 30. Rc5 {[%emt 0:00:28]} Bc4 {[%emt 0:00:34]} 31. Qxa4 {[%emt 0:00:34]} Qxb2 {[%emt 0:00:22]} 32. Qe8+ {[%emt 0:00:17]} Kg7 {[%emt 0:00:10]} 33. Qe5+ {[%emt 0:00:16]} Rf6 {[%emt 0:00:08]} 34. Bf3 {[%emt 0:04:02]} Qc1+ {[%emt 0:01:16]} 35. Kh2 {[%emt 0:00:20]} Qf4+ {[%emt 0:00:30]} 36. Qxf4 {[%emt 0:00:24]} Rxf4 {[%emt 0:00:01]} 37. Bxd5 {[%emt 0:00:35]} 1/2-1/2

[Event "32nd NATO Championship 2022"]
[Site "Tartu"]
[Date "2022.06.30"]
[Round "6.23"]
[White "Jacob, Tobias"]
[Black "Forsythe, William Bradley"]
[Result "1-0"]
[ECO "A25"]
[WhiteElo "2021"]
[BlackElo "1608"]
[Annotator "NA RC"]
[PlyCount "55"]
[EventDate "2022.06.27"]
[EventType "swiss"]
[EventCountry "EST"]
[SourceTitle "playchess.com"]
[Source "ChessBase"]
[SourceQuality "1"]
[TimeControl "5400+30"]

1. c4 {[%emt 0:00:04]} e5 {[%emt 0:00:22]} 2. g3 {[%emt 0:00:19]} Nf6 {[%emt 0:00:51]} 3. Bg2 {[%emt 0:00:06]} Nc6 {[%emt 0:00:16]} 4. Nc3 {[%emt 0:00:08]} d5 {[%emt 0:00:12]} 5. Nxd5 {[%emt 0:03:20]} Nxd5 {[%emt 0:00:54]} 6. cxd5 {[%emt 0:02:11]} Nb4 {[%emt 0:00:11]} 7. Qb3 {[%emt 0:01:25]} f5 {[%emt 0:12:01]} 8. d3 {[%emt 0:01:29]} Bd6 {[%emt 0:13:32]} 9. Nf3 {[%emt 0:02:28]} O-O {[%emt 0:09:50] [#]} (9... c6 $16 {is a better defense.}) 10. O-O {[%emt 0:02:48]} ({Better is} 10. Nxe5 $1 $18 {[%mdl 512]} Bxe5 11. Qxb4) 10... Qf6 {[%emt 0:03:08]} 11. Nd2 {[%emt 0:29:33]} Na6 {[%emt 0:17:46]} 12. Qc3 {[%emt 0:03:09]} f4 {[%emt 0:00:54]} 13. Ne4 {[%emt 0:02:49]} Qh6 {[%emt 0:00:45]} (13... Qg6 $16 {keeps fighting.} 14. a3 Bf5) 14. d4 {[%emt 0:01:25]} exd4 {[%emt 0:01:03]} 15. Qxd4 $18 {[%emt 0:00:35]} Bh3 {[%emt 0:02:57]} 16. Nxd6 {[%emt 0:01:40]} Bxg2 {[%emt 0:00:56]} 17. Kxg2 {[%emt 0:00:25]} cxd6 {[%emt 0:01:32]} 18. Bxf4 {[%emt 0:00:29]} Qh5 {[%emt 0:00:15]} 19. Bxd6 {[%emt 0:03:15]} Rf6 {[%emt 0:01:17]} 20. g4 {[%emt 0:03:35]} Qf7 {[%emt 0:01:28]} 21. Bg3 {[%emt 0:01:33]} Qd7 {[%emt 0:00:54]} 22. h3 {[%emt 0:01:28]} Nc7 {[%emt 0:00:48]} 23. e4 {[%emt 0:01:10]} Rd8 {[%emt 0:01:28]} 24. Rac1 {[%emt 0:04:39]} Na6 {[%emt 0:01:01]} 25. d6 {[%emt 0:03:00]} b6 {[%emt 0:00:42]} 26. Qc4+ {[%emt 0:00:13]} Kh8 {[%emt 0:01:17]} 27. Qxa6 {[%emt 0:00:20]} Qe6 {[%emt 0:04:12]} 28. Qb7 {[%emt 0:01:20]} 1-0